[Event "Titled Tuesday Blitz August 22 Early 2023"]
[White "matenitian"]
[Black "Pein, Jonathan"]
[BlackFideId "417092"]
[WhiteElo "2495"]
[BlackElo "2418"]
[Result "0-1"]
[Round "11"]
[TimeControl "180+1"]
[Date "2023.08.22"]
[WhiteClock "0:00:01"]
[BlackClock "0:00:10"]
[Board "103"]

1. e4 {[%clk 0:03:00]}  e5 {[%clk 0:02:58]} 2. Nf3 {[%clk 0:03:00]}  d6 {[%clk 0:02:59]} 3. Bc4 {[%clk 0:02:59]}  Nf6 {[%clk 0:02:59]} 4. Nc3 {[%clk 0:02:57]}  Be7 {[%clk 0:02:59]} 5. O-O {[%clk 0:02:56]}  O-O {[%clk 0:02:59]} 6. h3 {[%clk 0:02:50]}  c6 {[%clk 0:02:57]} 7. a4 {[%clk 0:02:46]}  Nbd7 {[%clk 0:02:57]} 8. d4 {[%clk 0:02:45]}  exd4 {[%clk 0:02:52]} 9. Qxd4 {[%clk 0:02:41]}  Re8 {[%clk 0:02:51]} 10. Ng5 {[%clk 0:02:03]}  Ne5 {[%clk 0:02:50]} 11. Bb3 {[%clk 0:01:53]}  h6 {[%clk 0:02:47]} 12. f4 {[%clk 0:01:49]}  hxg5 {[%clk 0:02:32]} 13. fxe5 {[%clk 0:01:48]}  dxe5 {[%clk 0:02:31]} 14. Qxe5 {[%clk 0:01:43]}  g4 {[%clk 0:02:18]} 15. hxg4 {[%clk 0:01:28]}  Bxg4 {[%clk 0:02:18]} 16. Be3 {[%clk 0:01:21]}  Qd6 {[%clk 0:01:45]} 17. Qg5 {[%clk 0:01:10]}  Nd5 {[%clk 0:01:35]} 18. Qxg4 {[%clk 0:01:02]}  Nxe3 {[%clk 0:01:35]} 19. Bxf7+ {[%clk 0:00:53]}  Kf8 {[%clk 0:01:29]} 20. Qh3 {[%clk 0:00:26]}  Nxf1 {[%clk 0:01:13]} 21. Rxf1 {[%clk 0:00:27]}  Bf6 {[%clk 0:01:08]} 22. Bg6 {[%clk 0:00:17]}  Red8 {[%clk 0:00:52]} 23. Qh5 {[%clk 0:00:12]}  Ke7 {[%clk 0:00:44]} 24. e5 {[%clk 0:00:10]}  Qd4+ {[%clk 0:00:41]} 25. Rf2 {[%clk 0:00:09]}  Bxe5 {[%clk 0:00:28]} 26. Ne4 {[%clk 0:00:06]}  Qd1+ {[%clk 0:00:17]} 27. Qxd1 {[%clk 0:00:05]}  Rxd1+ {[%clk 0:00:18]} 28. Rf1 {[%clk 0:00:05]}  Bd4+ {[%clk 0:00:16]} 29. Nf2 {[%clk 0:00:04]}  Bxf2+ {[%clk 0:00:10]} 30. Kxf2 {[%clk 0:00:01]}  Rf8+ {[%clk 0:00:10]} 0-1


[Site "https://www.chess.com"]

[Event "Titled Tuesday Blitz August 22 Early 2023"]
[White "Khamdamova, Afruza"]
[Black "Melikhov, Evgeny V."]
[WhiteFideId "14210444"]
[BlackFideId "4122046"]
[WhiteElo "2490"]
[BlackElo "2402"]
[Result "1-0"]
[Round "11"]
[TimeControl "180+1"]
[Date "2023.08.22"]
[WhiteClock "0:00:04"]
[BlackClock "0:00:03"]
[Board "104"]

1. Nf3 {[%clk 0:03:00]}  f5 {[%clk 0:02:59]} 2. g3 {[%clk 0:03:00]}  Nf6 {[%clk 0:02:58]} 3. Bg2 {[%clk 0:03:00]}  g6 {[%clk 0:02:59]} 4. d4 {[%clk 0:03:01]}  Bg7 {[%clk 0:02:59]} 5. O-O {[%clk 0:03:01]}  O-O {[%clk 0:02:59]} 6. c4 {[%clk 0:03:02]}  d6 {[%clk 0:03:00]} 7. Bf4 {[%clk 0:03:01]}  Nh5 {[%clk 0:02:53]} 8. Bd2 {[%clk 0:02:59]}  e5 {[%clk 0:02:52]} 9. Bc3 {[%clk 0:02:53]}  e4 {[%clk 0:02:51]} 10. Ne1 {[%clk 0:02:52]}  c6 {[%clk 0:02:43]} 11. e3 {[%clk 0:02:52]}  Nf6 {[%clk 0:02:36]} 12. Nd2 {[%clk 0:02:51]}  a5 {[%clk 0:02:32]} 13. Qc2 {[%clk 0:02:42]}  Na6 {[%clk 0:02:31]} 14. a3 {[%clk 0:02:42]}  Nc7 {[%clk 0:02:30]} 15. b4 {[%clk 0:02:41]}  axb4 {[%clk 0:02:30]} 16. axb4 {[%clk 0:02:41]}  Rxa1 {[%clk 0:02:29]} 17. Bxa1 {[%clk 0:02:42]}  Bd7 {[%clk 0:02:28]} 18. Qb3 {[%clk 0:02:38]}  Kh8 {[%clk 0:02:27]} 19. Nc2 {[%clk 0:02:37]}  g5 {[%clk 0:02:15]} 20. Rb1 {[%clk 0:02:26]}  Qe8 {[%clk 0:02:13]} 21. Na3 {[%clk 0:02:18]}  Qh5 {[%clk 0:02:12]} 22. b5 {[%clk 0:02:15]}  Ng4 {[%clk 0:02:08]} 23. h3 {[%clk 0:02:09]}  Nf6 {[%clk 0:02:01]} 24. bxc6 {[%clk 0:02:09]}  bxc6 {[%clk 0:01:52]} 25. Qb7 {[%clk 0:01:52]}  Ne6 {[%clk 0:01:52]} 26. d5 {[%clk 0:01:49]}  Nc5 {[%clk 0:01:45]} 27. Qc7 {[%clk 0:01:45]}  cxd5 {[%clk 0:01:44]} 28. Qxd6 {[%clk 0:01:40]}  Nb7 {[%clk 0:01:23]} 29. Qc7 {[%clk 0:01:31]}  f4 {[%clk 0:01:19]} 30. Bxf6 {[%clk 0:01:24]}  Rxf6 {[%clk 0:01:04]} 31. Rxb7 {[%clk 0:01:20]}  fxg3 {[%clk 0:00:35]} 32. Qxd7 {[%clk 0:01:10]}  gxf2+ {[%clk 0:00:34]} 33. Kh2 {[%clk 0:01:09]}  Bf8 {[%clk 0:00:29]} 34. c5 {[%clk 0:00:55]}  g4 {[%clk 0:00:23]} 35. Qxg4 {[%clk 0:00:28]}  Qxg4 {[%clk 0:00:23]} 36. hxg4 {[%clk 0:00:28]}  Bxc5 {[%clk 0:00:24]} 37. g5 {[%clk 0:00:19]}  Rg6 {[%clk 0:00:17]} 38. Nc2 {[%clk 0:00:18]}  Rxg5 {[%clk 0:00:16]} 39. Nf1 {[%clk 0:00:16]}  Bd6+ {[%clk 0:00:15]} 40. Kh3 {[%clk 0:00:17]}  h5 {[%clk 0:00:14]} 41. Rd7 {[%clk 0:00:16]}  Bc5 {[%clk 0:00:12]} 42. Nd4 {[%clk 0:00:16]}  Bxd4 {[%clk 0:00:12]} 43. exd4 {[%clk 0:00:16]}  Rg4 {[%clk 0:00:11]} 44. Rxd5 {[%clk 0:00:15]}  Rf4 {[%clk 0:00:12]} 45. Rxh5+ {[%clk 0:00:15]}  Kg7 {[%clk 0:00:12]} 46. Ne3 {[%clk 0:00:14]}  Kg6 {[%clk 0:00:12]} 47. Rh4 {[%clk 0:00:13]}  Rf8 {[%clk 0:00:10]} 48. Bxe4+ {[%clk 0:00:14]}  Kg5 {[%clk 0:00:10]} 49. Rg4+ {[%clk 0:00:14]}  Kh5 {[%clk 0:00:10]} 50. Bg2 {[%clk 0:00:13]}  Kh6 {[%clk 0:00:07]} 51. Kg3 {[%clk 0:00:13]}  Re8 {[%clk 0:00:05]} 52. Kxf2 {[%clk 0:00:13]}  Ra8 {[%clk 0:00:05]} 53. Kg3 {[%clk 0:00:13]}  Ra3 {[%clk 0:00:04]} 54. Kf4 {[%clk 0:00:13]}  Ra2 {[%clk 0:00:05]} 55. Be4 {[%clk 0:00:12]}  Rf2+ {[%clk 0:00:03]} 56. Ke5 {[%clk 0:00:12]}  Kh5 {[%clk 0:00:03]} 57. Rg8 {[%clk 0:00:10]}  Kh4 {[%clk 0:00:02]} 58. Nf5+ {[%clk 0:00:10]}  Kh3 {[%clk 0:00:02]} 59. Rh8+ {[%clk 0:00:10]}  Kg4 {[%clk 0:00:01]} 60. Ne3+ {[%clk 0:00:07]}  Kg5 {[%clk 0:00:01]} 61. Rg8+ {[%clk 0:00:07]}  Kh4 {[%clk 0:00:01]} 62. Rg4+ {[%clk 0:00:07]}  Kh5 {[%clk 0:00:01]} 63. d5 {[%clk 0:00:05]}  Re2 {[%clk 0:00:02]} 64. Rg3 {[%clk 0:00:05]}  Kh4 {[%clk 0:00:01]} 65. Nf5+ {[%clk 0:00:04]}  Kh5 {[%clk 0:00:02]} 66. Rh3+ {[%clk 0:00:04]}  Kg4 {[%clk 0:00:01]} 67. Rh4+ {[%clk 0:00:04]}  Kg5 {[%clk 0:00:02]} 68. Rh1 {[%clk 0:00:03]}  Rd2 {[%clk 0:00:02]} 69. d6 {[%clk 0:00:03]}  Kg4 {[%clk 0:00:01]} 70. Rg1+ {[%clk 0:00:03]}  Kh3 {[%clk 0:00:01]} 71. Rg3+ {[%clk 0:00:03]}  Kh2 {[%clk 0:00:01]} 72. Rg2+ {[%clk 0:00:03]}  Rxg2 {[%clk 0:00:01]} 73. Bxg2 {[%clk 0:00:03]}  Kxg2 {[%clk 0:00:02]} 74. d7 {[%clk 0:00:04]}  Kf3 {[%clk 0:00:03]} 75. d8=Q {[%clk 0:00:03]}  Kg4 {[%clk 0:00:04]} 76. Qd4+ {[%clk 0:00:04]}  Kf3 {[%clk 0:00:05]} 77. Qe4+ {[%clk 0:00:03]}  Kf2 {[%clk 0:00:06]} 78. Qe3+ {[%clk 0:00:03]}  Kf1 {[%clk 0:00:05]} 79. Qd2 {[%clk 0:00:03]}  Kg1 {[%clk 0:00:02]} 80. Kf4 {[%clk 0:00:03]}  Kh1 {[%clk 0:00:02]} 81. Kg3 {[%clk 0:00:03]}  Kg1 {[%clk 0:00:03]} 82. Qe1# {[%clk 0:00:04]} 1-0


[Site "https://www.chess.com"]

[Event "Titled Tuesday Blitz August 22 Early 2023"]
[White "Ziatdinov, Raset"]
[Black "Szyszylo, Rafal"]
[WhiteFideId "2015323"]
[BlackFideId "1109626"]
[WhiteElo "2367"]
[BlackElo "2461"]
[Result "1-0"]
[Round "11"]
[TimeControl "180+1"]
[Date "2023.08.22"]
[WhiteClock "0:00:07"]
[BlackClock "0:00:00"]
[Board "107"]

1. d4 {[%clk 0:03:00]}  d6 {[%clk 0:02:56]} 2. c4 {[%clk 0:03:00]}  g6 {[%clk 0:02:56]} 3. g3 {[%clk 0:02:58]}  Nf6 {[%clk 0:02:56]} 4. Nf3 {[%clk 0:02:59]}  Bg7 {[%clk 0:02:56]} 5. Bg2 {[%clk 0:03:00]}  O-O {[%clk 0:02:53]} 6. O-O {[%clk 0:03:00]}  Nc6 {[%clk 0:02:52]} 7. Nc3 {[%clk 0:02:47]}  a6 {[%clk 0:02:47]} 8. d5 {[%clk 0:02:46]}  Na5 {[%clk 0:02:46]} 9. Nd2 {[%clk 0:02:42]}  c5 {[%clk 0:02:46]} 10. Qc2 {[%clk 0:02:41]}  Rb8 {[%clk 0:02:44]} 11. Rb1 {[%clk 0:02:41]}  b5 {[%clk 0:02:35]} 12. b3 {[%clk 0:02:40]}  e5 {[%clk 0:02:25]} 13. e4 {[%clk 0:02:31]}  Nh5 {[%clk 0:02:06]} 14. Qd1 {[%clk 0:02:09]}  f5 {[%clk 0:01:54]} 15. exf5 {[%clk 0:02:00]}  Bxf5 {[%clk 0:01:52]} 16. Be4 {[%clk 0:01:39]}  Bh3 {[%clk 0:01:43]} 17. Bg2 {[%clk 0:01:36]}  Qd7 {[%clk 0:01:29]} 18. Qe2 {[%clk 0:01:22]}  bxc4 {[%clk 0:01:26]} 19. bxc4 {[%clk 0:01:16]}  Rxb1 {[%clk 0:01:21]} 20. Ncxb1 {[%clk 0:01:02]}  Bg4 {[%clk 0:00:59]} 21. f3 {[%clk 0:00:58]}  Bf5 {[%clk 0:00:58]} 22. Nc3 {[%clk 0:00:57]}  Bh3 {[%clk 0:00:51]} 23. Nde4 {[%clk 0:00:47]}  Bxg2 {[%clk 0:00:50]} 24. Kxg2 {[%clk 0:00:42]}  h6 {[%clk 0:00:50]} 25. Be3 {[%clk 0:00:35]}  Kh7 {[%clk 0:00:47]} 26. Rf2 {[%clk 0:00:19]}  Nb7 {[%clk 0:00:43]} 27. Qd2 {[%clk 0:00:18]}  Nd8 {[%clk 0:00:40]} 28. Rf1 {[%clk 0:00:13]}  Nf7 {[%clk 0:00:37]} 29. Qc2 {[%clk 0:00:12]}  Kg8 {[%clk 0:00:30]} 30. Nd2 {[%clk 0:00:11]}  Nh8 {[%clk 0:00:29]} 31. Nde4 {[%clk 0:00:10]}  Kh7 {[%clk 0:00:21]} 32. Qb1 {[%clk 0:00:10]}  Qc7 {[%clk 0:00:17]} 33. Qc2 {[%clk 0:00:08]}  Rb8 {[%clk 0:00:12]} 34. Rb1 {[%clk 0:00:08]}  Rxb1 {[%clk 0:00:13]} 35. Qxb1 {[%clk 0:00:09]}  Nf6 {[%clk 0:00:11]} 36. Nxf6+ {[%clk 0:00:07]}  Bxf6 {[%clk 0:00:12]} 37. Ne4 {[%clk 0:00:08]}  Be7 {[%clk 0:00:12]} 38. h4 {[%clk 0:00:04]}  Kg7 {[%clk 0:00:12]} 39. Kh2 {[%clk 0:00:04]}  Nf7 {[%clk 0:00:11]} 40. Kg2 {[%clk 0:00:04]}  Nd8 {[%clk 0:00:09]} 41. Kh2 {[%clk 0:00:04]}  Nb7 {[%clk 0:00:09]} 42. h5 {[%clk 0:00:02]}  gxh5 {[%clk 0:00:08]} 43. Kg2 {[%clk 0:00:01]}  Nd8 {[%clk 0:00:08]} 44. Qh1 {[%clk 0:00:02]}  Nf7 {[%clk 0:00:06]} 45. Qxh5 {[%clk 0:00:02]}  Bg5 {[%clk 0:00:05]} 46. Nxg5 {[%clk 0:00:01]}  hxg5 {[%clk 0:00:06]} 47. Bxg5 {[%clk 0:00:02]}  Qb6 {[%clk 0:00:04]} 48. Qg4 {[%clk 0:00:01]}  Qb2+ {[%clk 0:00:04]} 49. Kh3 {[%clk 0:00:02]}  Nxg5+ {[%clk 0:00:03]} 50. Qxg5+ {[%clk 0:00:03]}  Kf7 {[%clk 0:00:04]} 51. Qf5+ {[%clk 0:00:04]}  Kg7 {[%clk 0:00:04]} 52. Qe6 {[%clk 0:00:05]}  Qd4 {[%clk 0:00:02]} 53. Qe7+ {[%clk 0:00:05]}  Kg8 {[%clk 0:00:02]} 54. Qxd6 {[%clk 0:00:05]}  Qxc4 {[%clk 0:00:02]} 55. Qe6+ {[%clk 0:00:06]}  Kf8 {[%clk 0:00:02]} 56. Qxe5 {[%clk 0:00:07]}  Qf1+ {[%clk 0:00:01]} 57. Kg4 {[%clk 0:00:07]}  c4 {[%clk 0:00:00]} 58. d6 {[%clk 0:00:07]} 1-0


[Site "https://www.chess.com"]

[Event "Titled Tuesday Blitz August 22 Early 2023"]
[White "Tiarks, Jann-Christian"]
[Black "Shuvalov, Evgenij"]
[WhiteFideId "12951595"]
[BlackFideId "4187237"]
[WhiteElo "2326"]
[BlackElo "2461"]
[Result "1-0"]
[Round "11"]
[TimeControl "180+1"]
[Date "2023.08.22"]
[WhiteClock "0:00:19"]
[BlackClock "0:00:21"]
[Board "108"]

1. e4 {[%clk 0:03:00]}  e6 {[%clk 0:02:59]} 2. d4 {[%clk 0:03:00]}  d5 {[%clk 0:03:00]} 3. exd5 {[%clk 0:02:57]}  exd5 {[%clk 0:03:00]} 4. Nf3 {[%clk 0:02:56]}  Nf6 {[%clk 0:03:00]} 5. Bd3 {[%clk 0:02:55]}  c5 {[%clk 0:03:00]} 6. dxc5 {[%clk 0:02:53]}  Bxc5 {[%clk 0:02:59]} 7. O-O {[%clk 0:02:54]}  O-O {[%clk 0:02:59]} 8. c3 {[%clk 0:02:54]}  Nc6 {[%clk 0:02:59]} 9. h3 {[%clk 0:02:52]}  Ne4 {[%clk 0:02:57]} 10. Nbd2 {[%clk 0:02:51]}  f5 {[%clk 0:02:56]} 11. Nb3 {[%clk 0:02:51]}  Bb6 {[%clk 0:02:56]} 12. Nbd4 {[%clk 0:02:51]}  Qd6 {[%clk 0:02:54]} 13. a4 {[%clk 0:02:43]}  a6 {[%clk 0:02:51]} 14. Be3 {[%clk 0:02:43]}  Bc7 {[%clk 0:02:50]} 15. Qb3 {[%clk 0:02:30]}  Kh8 {[%clk 0:02:31]} 16. Nxc6 {[%clk 0:02:27]}  bxc6 {[%clk 0:02:29]} 17. Bd4 {[%clk 0:02:27]}  Ng5 {[%clk 0:02:23]} 18. Ne5 {[%clk 0:02:14]}  c5 {[%clk 0:02:21]} 19. f4 {[%clk 0:02:14]}  Ne6 {[%clk 0:02:14]} 20. Be3 {[%clk 0:02:06]}  c4 {[%clk 0:02:14]} 21. Nxc4 {[%clk 0:01:59]}  dxc4 {[%clk 0:02:13]} 22. Bxc4 {[%clk 0:01:59]}  Rb8 {[%clk 0:02:06]} 23. Qc2 {[%clk 0:01:56]}  Bb6 {[%clk 0:02:04]} 24. Rae1 {[%clk 0:01:52]}  Nxf4 {[%clk 0:01:56]} 25. Bxb6 {[%clk 0:01:48]}  Qxb6+ {[%clk 0:01:54]} 26. Kh1 {[%clk 0:01:45]}  Ng6 {[%clk 0:01:49]} 27. b4 {[%clk 0:01:43]}  Qc7 {[%clk 0:01:46]} 28. Bd3 {[%clk 0:01:38]}  Ne5 {[%clk 0:01:45]} 29. Bxf5 {[%clk 0:01:37]}  Bxf5 {[%clk 0:01:43]} 30. Rxf5 {[%clk 0:01:37]}  Nc4 {[%clk 0:01:34]} 31. Rc5 {[%clk 0:01:32]}  Qf7 {[%clk 0:01:30]} 32. Qd3 {[%clk 0:01:22]}  Nb6 {[%clk 0:01:26]} 33. Qxa6 {[%clk 0:01:20]}  Nd7 {[%clk 0:01:11]} 34. Rc7 {[%clk 0:01:17]}  Qf2 {[%clk 0:01:04]} 35. Qe2 {[%clk 0:01:13]}  Qxe2 {[%clk 0:01:01]} 36. Rxe2 {[%clk 0:01:13]}  Nb6 {[%clk 0:01:01]} 37. a5 {[%clk 0:01:11]}  Nd5 {[%clk 0:01:01]} 38. Rc5 {[%clk 0:01:10]}  Nf4 {[%clk 0:00:58]} 39. Rd2 {[%clk 0:01:07]}  h6 {[%clk 0:00:50]} 40. Kh2 {[%clk 0:01:05]}  Ne6 {[%clk 0:00:46]} 41. Rc6 {[%clk 0:01:04]}  Ng5 {[%clk 0:00:46]} 42. Re2 {[%clk 0:01:00]}  Rfc8 {[%clk 0:00:44]} 43. Rxc8+ {[%clk 0:00:56]}  Rxc8 {[%clk 0:00:45]} 44. a6 {[%clk 0:00:56]}  Nf7 {[%clk 0:00:41]} 45. Re6 {[%clk 0:00:49]}  Ra8 {[%clk 0:00:36]} 46. b5 {[%clk 0:00:48]}  Kg8 {[%clk 0:00:36]} 47. c4 {[%clk 0:00:47]}  Nd8 {[%clk 0:00:35]} 48. Rd6 {[%clk 0:00:44]}  Kf8 {[%clk 0:00:34]} 49. Rd7 {[%clk 0:00:41]}  Ne6 {[%clk 0:00:31]} 50. Rb7 {[%clk 0:00:27]}  Ke8 {[%clk 0:00:28]} 51. a7 {[%clk 0:00:25]}  Nd8 {[%clk 0:00:22]} 52. Rxg7 {[%clk 0:00:23]}  Ne6 {[%clk 0:00:19]} 53. Rh7 {[%clk 0:00:21]}  Nf8 {[%clk 0:00:18]} 54. Rc7 {[%clk 0:00:18]}  Kd8 {[%clk 0:00:16]} 55. b6 {[%clk 0:00:17]}  Nd7 {[%clk 0:00:16]} 56. Rxd7+ {[%clk 0:00:14]}  Kxd7 {[%clk 0:00:16]} 57. b7 {[%clk 0:00:15]}  Rxa7 {[%clk 0:00:16]} 58. b8=Q {[%clk 0:00:15]}  Rc7 {[%clk 0:00:17]} 59. Qxc7+ {[%clk 0:00:15]}  Kxc7 {[%clk 0:00:18]} 60. Kg3 {[%clk 0:00:15]}  Kc6 {[%clk 0:00:19]} 61. Kh4 {[%clk 0:00:16]}  Kc5 {[%clk 0:00:19]} 62. Kh5 {[%clk 0:00:17]}  Kxc4 {[%clk 0:00:20]} 63. Kxh6 {[%clk 0:00:18]}  Kd5 {[%clk 0:00:21]} 64. g4 {[%clk 0:00:19]}  Ke5 {[%clk 0:00:22]} 65. g5 {[%clk 0:00:19]}  Kf4 {[%clk 0:00:21]} 66. g6 {[%clk 0:00:19]} 1-0


[Site "https://www.chess.com"]

[Event "Titled Tuesday Blitz August 22 Early 2023"]
[White "Zampronha, Wladimir Camilo"]
[Black "Mmukka"]
[WhiteFideId "2103087"]
[WhiteElo "2300"]
[BlackElo "2460"]
[Result "0-1"]
[Round "11"]
[TimeControl "180+1"]
[Date "2023.08.22"]
[WhiteClock "0:00:42"]
[BlackClock "0:00:20"]
[Board "109"]

1. e4 {[%clk 0:03:00]}  c5 {[%clk 0:02:58]} 2. Nf3 {[%clk 0:03:01]}  e6 {[%clk 0:02:58]} 3. d4 {[%clk 0:03:01]}  cxd4 {[%clk 0:02:59]} 4. Nxd4 {[%clk 0:03:02]}  a6 {[%clk 0:02:59]} 5. Nc3 {[%clk 0:03:00]}  Qc7 {[%clk 0:03:00]} 6. Be2 {[%clk 0:02:59]}  Nf6 {[%clk 0:02:58]} 7. O-O {[%clk 0:02:58]}  Nc6 {[%clk 0:02:59]} 8. Be3 {[%clk 0:02:57]}  Be7 {[%clk 0:02:54]} 9. Kh1 {[%clk 0:02:55]}  d6 {[%clk 0:02:47]} 10. f4 {[%clk 0:02:53]}  O-O {[%clk 0:02:47]} 11. Nb3 {[%clk 0:02:51]}  b5 {[%clk 0:02:44]} 12. Bf3 {[%clk 0:02:51]}  Bb7 {[%clk 0:02:44]} 13. g4 {[%clk 0:02:45]}  b4 {[%clk 0:02:38]} 14. Ne2 {[%clk 0:02:45]}  a5 {[%clk 0:02:10]} 15. g5 {[%clk 0:02:45]}  Nd7 {[%clk 0:02:09]} 16. Bg2 {[%clk 0:02:42]}  a4 {[%clk 0:02:09]} 17. Nbd4 {[%clk 0:02:39]}  Nxd4 {[%clk 0:02:07]} 18. Nxd4 {[%clk 0:02:38]}  Nc5 {[%clk 0:02:06]} 19. f5 {[%clk 0:02:26]}  e5 {[%clk 0:01:27]} 20. f6 {[%clk 0:02:00]}  exd4 {[%clk 0:01:23]} 21. Bxd4 {[%clk 0:02:01]}  Nxe4 {[%clk 0:01:10]} 22. fxe7 {[%clk 0:01:57]}  Qxe7 {[%clk 0:01:11]} 23. Qg4 {[%clk 0:01:51]}  d5 {[%clk 0:01:05]} 24. h4 {[%clk 0:01:23]}  Qd6 {[%clk 0:00:55]} 25. Rf3 {[%clk 0:01:21]}  Rae8 {[%clk 0:00:50]} 26. h5 {[%clk 0:01:19]}  Bc8 {[%clk 0:00:48]} 27. Qh4 {[%clk 0:01:17]}  Qe7 {[%clk 0:00:43]} 28. Bf6 {[%clk 0:01:09]}  gxf6 {[%clk 0:00:31]} 29. gxf6 {[%clk 0:01:09]}  Qe5 {[%clk 0:00:22]} 30. Raf1 {[%clk 0:01:02]}  Kh8 {[%clk 0:00:22]} 31. Qe1 {[%clk 0:00:46]}  Rg8 {[%clk 0:00:21]} 32. Qxb4 {[%clk 0:00:45]}  Qxh5+ {[%clk 0:00:21]} 33. Rh3 {[%clk 0:00:42]}  Bxh3 {[%clk 0:00:20]} 0-1


[Site "https://www.chess.com"]

[Event "Titled Tuesday Blitz August 22 Early 2023"]
[White "Ai, Evan"]
[Black "Womacka, Mathias"]
[WhiteFideId "2094770"]
[BlackFideId "4611390"]
[WhiteElo "2275"]
[BlackElo "2451"]
[Result "0-1"]
[Round "11"]
[TimeControl "180+1"]
[Date "2023.08.22"]
[WhiteClock "0:00:00"]
[BlackClock "0:00:39"]
[Board "110"]

1. e4 {[%clk 0:03:00]}  c5 {[%clk 0:03:00]} 2. Nf3 {[%clk 0:03:00]}  d6 {[%clk 0:03:00]} 3. d4 {[%clk 0:03:00]}  cxd4 {[%clk 0:03:01]} 4. Nxd4 {[%clk 0:03:01]}  Nf6 {[%clk 0:03:01]} 5. Nc3 {[%clk 0:03:00]}  a6 {[%clk 0:03:02]} 6. h3 {[%clk 0:02:58]}  e5 {[%clk 0:02:55]} 7. Nf3 {[%clk 0:02:58]}  Be7 {[%clk 0:02:53]} 8. g4 {[%clk 0:02:55]}  h6 {[%clk 0:02:40]} 9. g5 {[%clk 0:02:53]}  hxg5 {[%clk 0:02:39]} 10. Nxg5 {[%clk 0:02:54]}  b5 {[%clk 0:02:27]} 11. Rg1 {[%clk 0:02:53]}  Bb7 {[%clk 0:02:23]} 12. Be3 {[%clk 0:02:46]}  Nbd7 {[%clk 0:02:22]} 13. a4 {[%clk 0:02:45]}  b4 {[%clk 0:02:21]} 14. Bc4 {[%clk 0:02:36]}  O-O {[%clk 0:02:12]} 15. Nd5 {[%clk 0:02:04]}  Rc8 {[%clk 0:02:11]} 16. b3 {[%clk 0:01:48]}  Nxd5 {[%clk 0:02:09]} 17. Bxd5 {[%clk 0:01:40]}  Bxd5 {[%clk 0:02:08]} 18. exd5 {[%clk 0:01:41]}  Bxg5 {[%clk 0:01:48]} 19. Bxg5 {[%clk 0:01:42]}  f6 {[%clk 0:01:48]} 20. Be3 {[%clk 0:01:36]}  Qc7 {[%clk 0:01:30]} 21. Bh6 {[%clk 0:00:46]}  Rf7 {[%clk 0:01:23]} 22. Qd3 {[%clk 0:00:37]}  Qxc2 {[%clk 0:01:17]} 23. Qxc2 {[%clk 0:00:29]}  Rxc2 {[%clk 0:01:18]} 24. Rc1 {[%clk 0:00:27]}  Rxc1+ {[%clk 0:01:16]} 25. Bxc1 {[%clk 0:00:28]}  Nc5 {[%clk 0:01:15]} 26. Bd2 {[%clk 0:00:27]}  a5 {[%clk 0:01:08]} 27. Rg3 {[%clk 0:00:24]}  f5 {[%clk 0:01:06]} 28. Rg6 {[%clk 0:00:15]}  Rd7 {[%clk 0:01:02]} 29. Rg5 {[%clk 0:00:14]}  Nxb3 {[%clk 0:00:59]} 30. Rxf5 {[%clk 0:00:14]}  Nc5 {[%clk 0:00:59]} 31. Kd1 {[%clk 0:00:10]}  Nxa4 {[%clk 0:00:59]} 32. Kc2 {[%clk 0:00:10]}  Nb6 {[%clk 0:00:59]} 33. f4 {[%clk 0:00:08]}  exf4 {[%clk 0:00:39]} 34. Bxf4 {[%clk 0:00:00]}  Rf7 {[%clk 0:00:39]} 0-1


[Site "https://www.chess.com"]